Cogmind - Beta 10.2 @@@ ROGUE MODE // 2021.10.10 @ 18:22:06 Player: Coronach Result: Destroyed 0B10! Performance ------------- Evolutions (9) 4500 Regions Visited (28) 5600 Robots Destroyed (234) 1170 Value Destroyed (15450) 15450 Prototype IDs (24) 480 Alien Tech Used (6) 1200 Bonus (23433) 23433 TOTAL SCORE: 51833 Bonus ------- High Alert Combat Kills 1559 Follower Combat Kills 4850 Entered Garrisons 1400 Used RIF Installer 3500 A7 Reached Mainframe 300 Met R17 at Cetus 500 Used Core Reset Matrix 3000 Hacked Protovariant 500 Scanned by Researcher 500 Met Sigix 2000 Escaped with Sigix 5000 Win 3000 Friendly Fire -2676 Cogmind --------- Core Integrity 1265/1600 Matter 90/300 Energy 98/100 System Corruption 0% Temperature Cool (0) Movement Core (50) Location Tau Ceti IV Orbit Parts ------- > --- POWER (2) -------- (None) > --- PROPULSION (6) --- (None) > --- UTILITY (15) ----- Experimental Heat Sink Advanced Signal Interpreter Advanced Terrain Scan Processor Improved Targeting Computer Improved Targeting Computer > --- WEAPON (2) ------- (None) > --- INVENTORY (4) ---- Quantum Reactor Improved Energy Well (600) Sigix Containment Pod Peak State ------------ > --- POWER ------------ Quantum Reactor > --- PROPULSION ------- Armored Heavy Treads Centrium Heavy Treads > --- UTILITY ---------- High-capacity Storage Unit High-capacity Storage Unit Improved Sensor Array Advanced Signal Interpreter Experimental Targeting Computer Experimental Targeting Computer Experimental Targeting Computer Precision Energy Filter Advanced Transmission Jammer EM Dispersion Field Advanced Hacking Suite Improved System Shield Matter Drive > --- WEAPON ----------- Nova Cannon Railgun > --- INVENTORY -------- Quantum Reactor Improved Heavy Treads Improved Heavy Treads Power Amplifier Experimental Heat Sink Experimental Heat Sink Improved Coolant Injector Energy Well YI-UF0's Bottomless Matter Pit Experimental Phase Shifter Subatomic Replicator Gamma Rifle Gamma Rifle Plasma Rifle EMDS Nova Cannon Coil Gun [Rating: 160] Favorites ----------- Power Quantum Reactor Engine Improved Deuterium Engine Power Core Nuclear Core Reactor Quantum Reactor Propulsion Armored Huge Wheel Treads Centrium Heavy Treads Leg Aluminum Leg Wheel Armored Huge Wheel Flight Unit Field Propulsion Drive Utility High-capacity Storage Unit Device Advanced Transmission Jammer Storage High-capacity Storage Unit Processor Advanced Signal Interpreter Hackware Advanced Hacking Suite Protection Improved Medium Armor Plating Artifact Matter Drive Weapon Heavy Ion Cannon Energy Gun EM Pulse Gun Energy Cannon Heavy Ion Cannon Ballistic Gun Railgun Ballistic Cannon Hardcell Cannon Launcher Rocket Launcher Special Weapon Remote Datajack Slashing Weapon Segregator Special Melee Weapon Improved Datajack Build | -11 -10 -10 -10 -9 -8 -8 -8 -7 -7 -7 -7 -6 -6 -6 -6 -6 -6 -5 -5 -4 -4 -3 -3 -3 -3 -2 -2 -1 ------- Run | Scr Mat Min Exi Min Mat Gar Mat Fac Gar Fac Gar Fac Ext Cet Arc Hub Gar Fac Gar Fac Gar Res Gar Res Qua Res Tes Acc Slots Evolved 18 | . . . . . 4 . . 2 . . . 2 . . . . . 2 . 2 . 2 . . . 2 . 2 Power 1 | . . . . . . . . . . . . . . . . . . . . . . . . . . 1 . . Propulsion 4 | . . . . . . . . 2 . . . . . . . . . . . . . . . . . . . 2 Utility 13 | . . . . . 4 . . . . . . 2 . . . . . 2 . 2 . 2 . . . 1 . . Weapon . | . . . . . . . . . . . . . . . . . . . . . . . . . . . . . Parts Attached 508 | 5 2 . 2 10 7 20 26 5 28 7 15 9 18 8 2 4 10 2 34 37 51 23 23 30 104 10 9 7 Power 25 | 1 . . . 2 . 2 2 . 2 . . 1 . 1 . . . . 1 1 1 1 . . 8 1 1 . Engine 7 | 1 . . . 2 . 1 1 . 1 . . 1 . . . . . . . . . . . . . . . . Core 4 | . . . . . . 1 1 . 1 . . . . . . . . . . . . . . . 1 . . . Reactor 14 | . . . . . . . . . . . . . . 1 . . . . 1 1 1 1 . . 7 1 1 . Propulsion 42 | 3 . . . 2 1 1 3 1 . 2 . . . 1 . . 1 . 2 3 5 3 1 3 5 3 . 2 Treads 24 | . . . . 1 1 . 2 . . . . . . 1 . . . . 1 2 4 3 1 3 5 . . . Leg 1 | . . . . . . 1 . . . . . . . . . . . . . . . . . . . . . . Wheel 12 | 3 . . . 1 . . 1 1 . 2 . . . . . . 1 . 1 1 1 . . . . . . . Hover . | . . . . . . . . . . . . . . . . . . . . . . . . . . . . . Flight 5 | . . . . . . . . . . . . . . . . . . . . . . . . . . 3 . 2 Utility 234 | 1 2 . 2 . 5 5 13 3 13 5 7 5 12 2 . 1 3 2 11 20 23 11 12 9 53 4 6 4 Device 94 | . . . . . 1 2 11 3 5 1 1 3 2 1 . . 1 1 3 11 7 4 . 3 30 1 2 1 Storage 20 | 1 2 . 2 . 2 . . . . . . . 1 . . . . . . . . . . . 7 1 1 3 Processor 15 | . . . . . 1 1 . . . . . . . . . . . . . 1 1 . . . 7 2 2 . Hackware 58 | . . . . . . . . . 6 2 6 2 5 1 . 1 1 1 4 5 9 5 5 3 2 . . . Protection 42 | . . . . . 1 2 2 . 2 2 . . 4 . . . 1 . 4 3 6 2 7 3 3 . . . Artifact 5 | . . . . . . . . . . . . . . . . . . . . . . . . . 4 . 1 . Weapon 207 | . . . . 6 1 12 8 1 13 . 8 3 6 4 2 3 6 . 20 13 22 8 10 18 38 2 2 1 Energy Gun 40 | . . . . 4 1 5 1 1 6 . . . . 3 1 . 1 . 5 . 2 1 1 . 7 1 . . Energy Cannon 47 | . . . . . . 3 4 . 2 . 4 3 4 1 . 2 1 . 4 4 3 . . . 10 . 1 1 Ballistic Gun 48 | . . . . . . . . . . . . . . . . . 1 . 4 6 9 5 5 9 9 . . . Ballistic Cannon 11 | . . . . . . . . . . . . . . . . . . . . . . . . . 11 . . . Launcher 13 | . . . . 1 . 4 3 . . . 1 . . . . . 1 . 3 . . . . . . . . . Special Weapon 46 | . . . . 1 . . . . 5 . 2 . 2 . 1 1 1 . 4 3 8 2 4 9 1 1 1 . Impact Weapon . | . . . . . . . . . . . . . . . . . . . . . . . . . . . . . Slashing Weapon 1 | . . . . . . . . . . . 1 . . . . . . . . . . . . . . . . . Piercing Weapon . | . . . . . . . . . . . . . . . . . . . . . . . . . . . . . Special Melee Weapon 1 | . . . . . . . . . . . . . . . . . 1 . . . . . . . . . . . Unidentified Prototypes 17 | . . . . 1 2 . . . . . . . . . . . . . 1 1 . 1 . . 9 . 1 1 Parts Lost 78 | . . . . 3 . 7 2 1 4 . . . 1 1 . . 1 . 8 3 5 2 3 2 25 . . 10 Power 5 | . . . . . . 2 . . 1 . . . . . . . . . . . 1 . . . 1 . . . Propulsion 16 | . . . . 2 . 1 . . . . . . . . . . . . . 1 2 . 1 . 4 . . 5 Utility 32 | . . . . . . 2 . . . . . . 1 . . . . . 1 1 1 2 2 2 16 . . 4 Weapon 25 | . . . . 1 . 2 2 1 3 . . . . 1 . . 1 . 7 1 1 . . . 4 . . 1 Highest Loss Streak 11 | . . . . 2 . 3 1 1 1 . . . 1 1 . . 1 . 5 1 2 1 2 1 11 . . 10 Average Slot Usage (%) 87 | . 100 100 100 99 100 97 95 84 83 83 83 82 85 85 86 84 83 88 87 88 89 92 86 84 84 17 56 56 Engine 2 | . 14 14 14 14 9 3 6 . . . . 1 6 . . . . . . . . . . . . . . . Core 1 | . . . . . . 3 2 7 5 7 7 4 . . . . . . . . . . . . . . . . Reactor 2 | . . . . . . . . . . . . . . 5 6 6 6 5 4 4 5 4 4 4 3 . 4 3 Treads 6 | . . . . 12 9 16 8 . . . . . . 2 6 6 6 5 5 4 6 11 9 9 8 . . . Wheel 6 | . 28 28 28 14 9 . 4 15 15 15 15 13 13 9 6 6 6 5 5 4 4 . . . . . . . Device 6 | . . . . . 9 9 9 7 4 6 . 6 2 6 6 6 5 11 1 3 3 8 4 4 20 8 11 7 Storage 18 | . 28 28 28 28 27 27 27 23 23 23 23 20 20 20 20 20 20 17 17 15 15 14 14 14 13 . 2 5 Processor 6 | . . . . . 8 9 9 7 7 7 7 6 6 6 6 6 6 5 5 5 5 4 4 4 15 4 17 19 Hackware 16 | . . . . . . . . . 1 3 6 8 15 20 20 17 13 17 22 36 36 33 32 32 10 . . . Protection 3 | . . . . . 9 9 9 7 7 4 7 6 7 . . . 5 5 9 . 1 4 5 4 . . . . Energy Gun 4 | . 28 28 28 26 18 10 3 10 8 . . . . 6 12 . 2 . 5 1 . . . . . . . . Energy Cannon 3 | . . . . . . 6 14 3 4 7 7 7 7 3 . 8 6 5 1 1 . . . . 1 . 1 3 Ballistic Gun 2 | . . . . . . . . . . . . . . . . . . 5 2 5 7 5 5 6 2 . . . Special Weapon 1 | . . . . 1 . . . . 1 7 5 4 4 1 . 3 1 . . 1 1 2 2 2 . 2 2 . Naked Turns . | . . . . . . . . . . . . . . . . . . . . . . . . . . . . . Heaviest Build 156 | 17 41 41 73 78 116 120 123 122 122 133 125 129 129 130 127 133 137 138 139 136 133 133 141 143 156 16 38 46 Greatest Support 155 | 32 32 32 32 32 40 40 40 56 56 56 56 56 56 80 80 28 80 28 80 80 116 130 135 140 155 38 38 58 Greatest Overweight (x) 11 | . 1 1 2 7 11 5 5 2 2 2 2 2 2 4 4 4 4 4 4 4 4 1 1 2 1 . . . Average Overweight (x) 2 | . . 1 1 6 10 2 3 2 1 2 2 2 2 2 1 4 3 4 3 3 2 . . 1 . . . . Largest Inventory Capacity 28 | 8 16 16 20 20 28 28 28 28 28 28 28 28 28 28 28 28 28 28 28 28 28 28 28 28 28 8 4 12 Average Capacity 25 | 6 15 16 16 20 28 28 28 28 28 28 28 28 28 28 28 28 28 28 28 28 28 28 28 28 20 4 4 5 Most Carried 28 | 6 16 16 18 20 19 28 28 28 28 28 28 28 28 28 28 28 28 28 28 28 28 28 28 28 28 4 4 4 Average Carried 23 | . 5 16 16 19 16 22 27 27 27 27 27 26 25 26 28 27 27 27 24 27 26 26 27 27 19 4 3 3 Final Capacity 28 | 8 16 16 20 20 28 28 28 28 28 28 28 28 28 28 28 28 28 28 28 28 28 28 28 28 4 4 4 4 Final Carried 28 | . 16 16 17 20 17 28 28 28 27 28 28 28 26 28 28 27 28 28 28 28 28 28 28 28 4 4 4 4 Class Distribution -------------------- 35% | Botlord-Mutant 23% | Bothacker-Mutant 19% | Hauler-Mutant 14% | Scavenger-Mutant 4% | Mutant Dominant Class ---------------- Mutant | -10/Materials Mutant | -10/Mines Mutant | -10/Exiles Hauler-Mutant | -9/Mines Hauler-Mutant | -8/Materials Hauler-Mutant | -8/Garrison Hauler-Mutant | -8/Materials Hauler-Mutant | -7/Factory Bothacker-Mutant | -7/Garrison Bothacker-Mutant | -7/Factory Bothacker-Mutant | -7/Garrison Bothacker-Mutant | -6/Factory Bothacker-Mutant | -6/Extension Bothacker-Mutant | -6/Cetus Bothacker-Mutant | -6/Archives Bothacker-Mutant | -6/Hub_04(d) Bothacker-Mutant | -6/Garrison Botlord-Mutant | -5/Factory Hauler-Mutant | -5/Garrison Botlord-Mutant | -4/Factory Botlord-Mutant | -4/Garrison Botlord-Mutant | -3/Research Botlord-Mutant | -3/Garrison Botlord-Mutant | -3/Research Scavenger-Mutant | -3/Quarantine Mutant | -2/Research Mutant | -2/Testing Sprinter | -1/Access Resources | -11 -10 -10 -10 -9 -8 -8 -8 -7 -7 -7 -7 -6 -6 -6 -6 -6 -6 -5 -5 -4 -4 -3 -3 -3 -3 -2 -2 -1 ----------- Run | Scr Mat Min Exi Min Mat Gar Mat Fac Gar Fac Gar Fac Ext Cet Arc Hub Gar Fac Gar Fac Gar Res Gar Res Qua Res Tes Acc Matter Collected 14159 | 250 20 . . 110 . 764 882 72 908 23 398 120 300 90 35 50 108 . 566 806 1539 589 839 1326 4364 . . . Remotely 971 | . . . . . . . . . . . . . . . . . . . . . . . . 242 729 . . . Salvage Created 11334 | 107 98 45 . 437 . 834 1016 72 457 . 256 190 166 45 74 . 226 . 787 989 942 536 247 716 3094 . . . Parts 598 | 7 9 9 . 29 . 42 56 3 18 . 19 7 4 4 1 . 7 . 35 63 47 26 10 37 165 . . . Haulers Intercepted 5 | . 1 . . . . . 2 . . . . . . . . . . . . 1 . . . 1 . . . . Recyclers Shooed 3 | 1 . . . . . . 2 . . . . . . . . . . . . . . . . . . . . . Parts Field Recycled . | . . . . . . . . . . . . . . . . . . . . . . . . . . . . . Retrieved Matter . | . . . . . . . . . . . . . . . . . . . . . . . . . . . . . Parts Self-Destructed . | . . . . . . . . . . . . . . . . . . . . . . . . . . . . . Prevented . | . . . . . . . . . . . . . . . . . . . . . . . . . . . . . Kills | -11 -10 -10 -10 -9 -8 -8 -8 -7 -7 -7 -7 -6 -6 -6 -6 -6 -6 -5 -5 -4 -4 -3 -3 -3 -3 -2 -2 -1 ------- Run | Scr Mat Min Exi Min Mat Gar Mat Fac Gar Fac Gar Fac Ext Cet Arc Hub Gar Fac Gar Fac Gar Res Gar Res Qua Res Tes Acc Combat Hostiles Destroyed 198 | . 2 3 . 9 . 22 15 2 11 . 8 1 3 2 1 . 6 . 14 14 12 8 3 8 54 . . . Guns 89 | . 2 2 . 6 . 4 . 1 8 . . . . . . . 3 . 10 9 12 8 3 8 13 . . . Cannons 74 | . . . . . . 3 9 . 3 . 4 1 3 2 . . 1 . 2 5 . . . . 41 . . . AOE 29 | . . 1 . 3 . 13 6 . . . 4 . . . . . 2 . . . . . . . . . . . Classes Destroyed 18 | 2 3 . . 2 . 2 4 1 . . . . . . . . . . . . 1 . . . 3 . . . Worker 6 | . 1 . . . . . 1 . . . . . . . . . . . . . . 1 . 1 2 . . . Builder 5 | . . . . . . . 3 . . . . . . . . . . . . . . . . . 2 . . . Tunneler 1 | 1 . . . . . . . . . . . . . . . . . . . . . . . . . . . . Hauler 5 | . 1 . . . . . 2 . . . . . . . . . . . . 1 . . . 1 . . . . Recycler 6 | 1 . . . . . . 4 . . . . 1 . . . . . . . . . . . . . . . . Watcher 7 | . . . . . . 2 3 . . . . 1 . . . . . . . . . . . . 1 . . . Swarmer 36 | . 2 3 . 4 . 6 3 . 2 . 4 . . 2 . . 4 . 4 . 1 . . 1 . . . . Saboteur 1 | . . . . . . . . . . . . . . . . . . . . . . . . . 1 . . . Grunt 68 | . . . . 3 . 13 4 . 9 . 4 . 3 . . . 2 . 6 . 2 . 1 1 20 . . . Brawler 3 | . . . . . . . 1 . . . . . . . . . . . . . . . . . 2 . . . Duelist 2 | . . . . . . . 1 . . . . . . . . . . . . . . . . . 1 . . . Protector 3 | . . . . . . . 1 . . . . . . . . . . . . . . . . . 2 . . . Researcher 3 | . . . . . . . . . . . . . . . . . . . . . . . . . 3 . . . Sentry 22 | . . . . 2 . 2 5 . . . . . . . 1 . . . 4 1 2 1 2 2 . . . . Hunter 8 | . . . . . . 1 . . . . . . . . . . . . . 2 4 . . . 1 . . . Programmer 52 | . . . . . . . . 2 . . . 1 . . . . . . . 11 2 7 . 5 24 . . . Behemoth 1 | . . . . . . . . . . . . . . . . . . . . . 1 . . . . . . . Lightning 3 | . . . . . . . . . . . . . . . . . . . . . . . . . 3 . . . Assembled 1 | . . . . . . . . . . . . . . . . . . . . . . . . . 1 . . . Savage 1 | . . . . . . . . . . . . . . . . . 1 . . . . . . . . . . . Best Kill Streak 13 | 2 3 2 . 3 . 6 13 1 3 . 4 2 2 2 1 . 2 . 6 2 2 3 2 3 6 . . . Combat Bots Only 9 | . 2 2 . 3 . 6 9 1 3 . 4 1 2 2 1 . 2 . 6 2 2 3 2 3 5 . . . Max Kills in Single Turn 3 | 1 1 1 . 3 . 3 2 1 1 . 3 1 1 1 1 . 2 . 1 1 1 2 1 1 2 . . . Gunslinging 1 | . . . . 1 . . . . . . . . . . . . . . . . . 1 . . . . . . Exploded 3 | . . 1 . 3 . 3 2 . . . 3 . . . . . 2 . . . . . . . . . . . Melee . | . . . . . . . . . . . . . . . . . . . . . . . . . . . . . Uniques/NPCs Destroyed 1 | . . . . 1 . . . . . . . . . . . . . . . . . . . . . . . . YI-UF0 (-9/Mines) Combat | -11 -10 -10 -10 -9 -8 -8 -8 -7 -7 -7 -7 -6 -6 -6 -6 -6 -6 -5 -5 -4 -4 -3 -3 -3 -3 -2 -2 -1 -------- Run | Scr Mat Min Exi Min Mat Gar Mat Fac Gar Fac Gar Fac Ext Cet Arc Hub Gar Fac Gar Fac Gar Res Gar Res Qua Res Tes Acc Damage Taken 27736 | . 36 40 . 382 . 1073 542 191 1010 27 496 167 377 354 175 . 352 . 3483 1935 2442 1372 1181 1786 8739 87 26 1463 Core 2860 | . . 14 . 90 . 110 22 14 232 . 46 35 40 18 7 . 38 . 325 160 232 115 56 150 798 23 . 335 Absorbed by Shields 24 | . . . . . . . . . . . . . 24 . . . . . . . . . . . . . . . Reduced by Siege Mode 1984 | . . . . . . . . . . . . . . . . . . . 217 131 123 160 175 242 936 . . . Redirected to Core 189 | . . . . . . . . . . . . . . . . . . . . . . . . . 189 . . . Core Remaining (%) 69 | 100 . . . 58 . . 76 . . . 58 . . . . . 83 . 67 . 65 . . . 11 . 98 79 Volleys Fired 1149 | 5 15 6 . 48 . 70 40 15 55 18 44 50 39 7 7 2 36 4 72 72 110 56 56 71 251 . . . Largest 2 | 2 2 2 . 2 . 2 2 2 2 1 2 2 2 2 2 1 2 2 2 2 2 2 2 2 2 . . . Hottest 305 | 90 90 90 . 90 . 135 130 128 128 65 138 155 155 170 160 30 305 100 178 195 123 60 70 70 300 . . . Shots Fired 1806 | 10 30 12 . 66 . 124 73 30 84 18 46 59 50 10 11 2 49 5 112 130 174 83 84 112 432 . . . Gun 1000 | 10 30 12 . 37 . 83 5 27 51 . . . . 5 8 . 13 1 85 90 154 55 66 85 183 . . . Cannon 578 | . . . . . . 31 61 3 18 13 32 53 25 3 . . 31 4 17 37 6 . . . 244 . . . Launcher 22 | . . . . . . 10 7 . . . 2 . . . . . 1 . 2 . . . . . . . . . Special 206 | . . . . 29 . . . . 15 5 12 6 25 2 3 2 4 . 8 3 14 28 18 27 5 . . . Kinetic 785 | . . . . . . . . . . . . . . . . . . 1 26 87 139 55 66 85 326 . . . Thermal 683 | 5 15 6 . 48 . 31 66 30 69 13 27 53 25 8 8 . 44 4 76 40 21 . . . 94 . . . Explosive 22 | . . . . . . 10 7 . . . 2 . . . . . 1 . 2 . . . . . . . . . Electromagnetic 139 | 5 15 6 . 18 . 83 . . . . 5 . . . . . . . . . . . . . 7 . . . Robot Hit Streak 33 | 6 5 2 . 7 . 12 7 8 9 5 9 4 13 3 5 3 5 . 21 27 16 22 25 32 33 . . . Robot Miss Streak 5 | 1 3 4 . 4 . 5 3 3 3 1 4 2 2 3 2 . 2 3 1 5 3 5 2 2 3 . . . Penetration Max 2 | . . . . . . . . . . . . . . . . . . . . . 1 1 1 2 2 . . . Secondary Targets 16 | . . . . 1 . . . . 1 . . . . . . . . . 5 . . 4 1 2 2 . . . Max Gunslinging Chain 1 | . . . . 1 . . . . 1 . . . . . . . . . 1 . . 1 1 1 1 . . . Shots Hit Robots 1239 | 8 17 5 . 43 . 67 45 21 52 4 23 12 37 4 8 2 17 . 81 89 128 68 66 96 346 . . . Core Hits 482 | 3 5 3 . 19 . 52 37 4 22 . 11 4 5 2 1 . 9 . 35 35 43 16 14 26 136 . . . Critical Hits 54 | . . . . . . . . . . . . . . 1 . . . . 1 19 14 3 1 3 12 . . . Critical Kills 20 | . . . . . . . . . . . . . . . . . . . . 8 4 1 . 1 6 . . . Critical Parts Destroyed 30 | . . . . . . . . . . . . . . . . . . . 1 11 8 1 1 2 6 . . . Melee Attacks . | . . . . . . . . . . . . . . . . . . . . . . . . . . . . . Impact . | . . . . . . . . . . . . . . . . . . . . . . . . . . . . . Slashing . | . . . . . . . . . . . . . . . . . . . . . . . . . . . . . Piercing . | . . . . . . . . . . . . . . . . . . . . . . . . . . . . . Sneak Attacks . | . . . . . . . . . . . . . . . . . . . . . . . . . . . . . Combat Hostiles . | . . . . . . . . . . . . . . . . . . . . . . . . . . . . . Follow-up Attacks . | . . . . . . . . . . . . . . . . . . . . . . . . . . . . . Damage Inflicted 32705 | 101 216 99 . 599 . 1991 2138 388 774 27 728 269 512 127 173 . 566 . 2133 1650 1953 1280 1152 2318 13511 . . . Guns 15306 | 101 216 56 . 274 . 593 85 321 612 . . . . 37 173 . 266 . 1721 721 1886 1280 1152 2318 3494 . . . Cannons 14455 | . . . . . . 486 1076 67 162 27 388 269 512 90 . . 159 . 323 812 67 . . . 10017 . . . Explosions 2715 | . . 43 . 104 . 912 977 . . . 340 . . . . . 141 . 81 117 . . . . . . . . Melee . | . . . . . . . . . . . . . . . . . . . . . . . . . . . . . Ramming 8 | . . . . . . . . . . . . . . . . . . . 8 . . . . . . . . . Kinetic 17066 | . . . . . . . . . . . . . . . . . . . 549 640 1619 1280 1152 2318 9508 . . . Thermal 11970 | 49 101 55 . 439 . 642 1161 388 774 27 331 269 512 127 173 . 425 . 1495 1010 334 . . . 3658 . . . Explosive 2204 | . . . . . . 756 977 . . . 249 . . . . . 141 . 81 . . . . . . . . . Electromagnetic 1457 | 52 115 44 . 160 . 593 . . . . 148 . . . . . . . . . . . . . 345 . . . Impact . | . . . . . . . . . . . . . . . . . . . . . . . . . . . . . Slashing . | . . . . . . . . . . . . . . . . . . . . . . . . . . . . . Piercing . | . . . . . . . . . . . . . . . . . . . . . . . . . . . . . Highest Corruption 38 | . . . . . . . . 2 2 2 2 1 1 1 1 1 1 . . 5 8 9 9 22 38 . . . Average Corruption 8 | . . . . . . . . 1 2 2 2 1 1 1 1 1 1 . . 2 7 3 9 14 20 . . . Corruption Purged . | . . . . . . . . . . . . . . . . . . . . . . . . . . . . . Effects 619 | . . . . . . . . 3 11 3 6 1 4 2 1 . 3 . . 19 88 5 66 99 308 . . . Message Errors 128 | . . . . . . . . 2 4 . 1 . 1 1 1 . 2 . . 5 23 1 14 22 51 . . . Matter Fused 91 | . . . . . . . . . . . . . . . . . . . . 3 20 1 10 16 41 . . . Heat Flow Errors 58 | . . . . . . . . . 1 1 3 . . . . . . . . 3 10 1 11 13 15 . . . Energy Discharges 49 | . . . . . . . . . 3 1 1 . 2 . . . . . . 5 6 . 10 4 17 . . . Parts Rejected 7 | . . . . . . . . . . . . . . . . . . . . . . . 1 2 4 . . . Data Loss (minor) 55 | . . . . . . . . 1 1 1 . . 1 1 . . 1 . . 3 10 1 9 6 20 . . . Data Loss (major) 19 | . . . . . . . . . . . . . . . . . . . . . 4 . 3 3 9 . . . Misfires 13 | . . . . . . . . . . . . . . . . . . . . . 1 . 2 2 8 . . . Alerts 6 | . . . . . . . . . . . . . . . . . . . . . . . . 2 4 . . . Misdirections 37 | . . . . . . . . . . . . . . . . . . . . . . . . 6 31 . . . Targeting Errors 129 | . . . . . . . . . 2 . 1 1 . . . . . . . . 11 1 6 19 88 . . . Weapon Failures 27 | . . . . . . . . . . . . . . . . . . . . . 3 . . 4 20 . . . Overload Shots 3 | . . . . . . . . . . . . . . . . . 3 . . . . . . . . . . . Overflow Damage 789 | . . . . . . 22 138 . . 4 23 . 2 . . . . . . 31 . . . . 569 . . . Projectiles 678 | . . . . . . 17 55 . . 4 23 . 2 . . . . . . 8 . . . . 569 . . . Explosions 111 | . . . . . . 5 83 . . . . . . . . . . . . 23 . . . . . . . . Melee . | . . . . . . . . . . . . . . . . . . . . . . . . . . . . . Knockbacks 61 | . . . . . . . . . . . . . . . . . . . . . . . . . 61 . . . Impact . | . . . . . . . . . . . . . . . . . . . . . . . . . . . . . Kinetic 53 | . . . . . . . . . . . . . . . . . . . . . . . . . 53 . . . Secondary 8 | . . . . . . . . . . . . . . . . . . . . . . . . . 8 . . . Self-Inflicted Damage 158 | . . . . 43 . 84 31 . . . . . . . . . . . . . . . . . . . . . Shots 5 | . . . . 1 . 3 1 . . . . . . . . . . . . . . . . . . . . . Rammed 1 | . . . . . . . . . . . . . . . . . . . 1 . . . . . . . . . Targets Rammed 1 | . . . . . . . . . . . . . . . . . . . 1 . . . . . . . . . Kicked . | . . . . . . . . . . . . . . . . . . . . . . . . . . . . . Crushed . | . . . . . . . . . . . . . . . . . . . . . . . . . . . . . Highest Temperature 425 | 170 170 100 . 200 . 104 180 206 418 102 197 207 234 132 252 3 425 . 315 201 325 258 249 269 222 . . 1 Average Temperature 71 | 89 61 46 . 81 . 30 61 77 90 24 38 40 71 55 114 3 138 . 86 75 76 42 73 76 80 . . 1 Received Heat Transfer 4146 | . . . . 75 . 306 126 . 297 6 144 24 147 9 27 . 120 . 609 18 231 48 237 111 1584 18 . 9 Effects 2 | . . . . . . . . . 1 . . . . . . . 1 . . . . . . . . . . . Shutdowns 1 | . . . . . . . . . 1 . . . . . . . . . . . . . . . . . . . Matter Decay 1 | . . . . . . . . . . . . . . . . . 1 . . . . . . . . . . . Siege Activations 59 | . . . . . . . . . . . . . . . . . . . 3 9 7 5 3 6 26 . . . Total Turns 1401 | . . . . . . . . . . . . . . . . . . . 114 172 121 77 115 118 684 . . . Longest Duration 131 | . . . . . . . . . . . . . . . . . . . 67 36 44 26 51 35 131 . . . Robots Corrupted 4 | . . . . . . 2 . . . . . . . . . . . . . . . . . . 2 . . . Combat Hostiles 2 | . . . . . . 2 . . . . . . . . . . . . . . . . . . . . . . Parts Fried 5 | . . . . . . . . . . . . . . . . . . . . . . . . . 5 . . . Impact Corruptions . | . . . . . . . . . . . . . . . . . . . . . . . . . . . . . Robots Melted 4 | . . . . . . . . 1 . . . . . . 1 . . . 2 . . . . . . . . . Combat Hostiles 4 | . . . . . . . . 1 . . . . . . 1 . . . 2 . . . . . . . . . Parts Melted 24 | . . . . 1 . 4 1 2 3 . 1 1 1 1 2 . . . 4 1 2 . . . . . . . Heat Transferred 15310 | 148 296 37 . 1223 . 866 1665 703 1554 37 433 333 647 148 222 . 568 . 1518 1335 700 . . . 2877 . . . Parts Sabotaged . | . . . . . . . . . . . . . . . . . . . . . . . . . . . . . Parts Stolen . | . . . . . . . . . . . . . . . . . . . . . . . . . . . . . Parts Stripped . | . . . . . . . . . . . . . . . . . . . . . . . . . . . . . Power Chain Reactions 7 | . . 1 . 1 . 4 . . . . 1 . . . . . . . . . . . . . . . . . Missiles Intercepted . | . . . . . . . . . . . . . . . . . . . . . . . . . . . . . Alert | -11 -10 -10 -10 -9 -8 -8 -8 -7 -7 -7 -7 -6 -6 -6 -6 -6 -6 -5 -5 -4 -4 -3 -3 -3 -3 -2 -2 -1 ------- Run | Scr Mat Min Exi Min Mat Gar Mat Fac Gar Fac Gar Fac Ext Cet Arc Hub Gar Fac Gar Fac Gar Res Gar Res Qua Res Tes Acc Peak Influence 1320 | 10 79 114 . 120 4 1003 797 362 606 336 591 313 336 882 427 246 886 483 615 322 735 460 349 209 1320 745 530 994 Initial 715 | . 6 29 . . . 2 488 297 253 317 95 310 4 124 352 149 172 464 338 277 162 413 174 190 38 715 418 317 Average 313 | 5 30 83 . 37 . 561 618 313 441 293 401 125 161 560 404 192 637 477 476 102 541 309 290 84 280 724 446 512 Maximum Alert Level 4 | . . . . . . 3 3 1 2 1 2 1 1 3 2 1 3 2 2 1 3 2 1 1 4 3 2 3 Low Security (%) 41 | 100 100 100 . 100 100 12 . . . 17 21 73 68 6 . 45 10 . . 76 6 40 12 88 59 . . . Level 1 24 | . . . . . . 13 . 100 46 82 21 26 31 24 33 54 11 . 22 23 8 15 87 11 15 . . 25 Level 2 25 | . . . . . . 42 80 . 53 . 56 . . 35 66 . 23 100 77 . 67 43 . . 10 . 100 54 Level 3 8 | . . . . . . 31 19 . . . . . . 33 . . 54 . . . 17 . . . 9 100 . 19 Level 4 . | . . . . . . . . . . . . . . . . . . . . . . . . . 4 . . . Level 5 . | . . . . . . . . . . . . . . . . . . . . . . . . . . . . . High Security . | . . . . . . . . . . . . . . . . . . . . . . . . . . . . . Max Security . | . . . . . . . . . . . . . . . . . . . . . . . . . . . . . Squads Dispatched 49 | . 1 . . . . . 1 1 . . . 1 2 . . . . . . 5 . 6 . 5 19 1 3 4 Investigation 4 | . 1 . . . . . . . . . . . . . . . . . . . . . . . . 1 . 2 Extermination 22 | . . . . . . . . 1 . . . 1 . . . . . . . 5 . 2 . 4 9 . . . Reinforcement 11 | . . . . . . . . . . . . . 2 . . . . . . . . 1 . 1 5 . 1 1 Assault 9 | . . . . . . . 1 . . . . . . . . . . . . . . . . . 5 . 2 1 Garrison 3 | . . . . . . . . . . . . . . . . . . . . . . 3 . . . . . . Intercept . | . . . . . . . . . . . . . . . . . . . . . . . . . . . . . Construction Impeded . | . . . . . . . . . . . . . . . . . . . . . . . . . . . . . Haulers Reinforced 2 | . . . . . . . . . . . . . . . . . . . . . . 1 . . 1 . . . Alert ID Control Effect 55 | . . . . . . . . . . . . . 4 . 1 . . . 12 . 1 12 4 19 2 . . . Stealth | -11 -10 -10 -10 -9 -8 -8 -8 -7 -7 -7 -7 -6 -6 -6 -6 -6 -6 -5 -5 -4 -4 -3 -3 -3 -3 -2 -2 -1 --------- Run | Scr Mat Min Exi Min Mat Gar Mat Fac Gar Fac Gar Fac Ext Cet Arc Hub Gar Fac Gar Fac Gar Res Gar Res Qua Res Tes Acc Distress Signals 16 | . . . . . . 2 2 . . . . . 1 2 . . . . . . . . . 3 1 2 . 3 Communications Jammed 206 | . . . . . . . . . . . . . . . . . . . . . . 1 . 37 168 . . . Distress Signals 204 | . . . . . . . . . . . . . . . . . . . . . . . . 37 167 . . . Times Spotted 539 | . 8 4 . 9 . 33 21 3 29 2 35 3 27 21 4 2 19 . 36 17 26 26 13 34 100 9 10 48 Peak Tracking Total 18 | . 6 3 . 4 . 5 5 2 7 1 5 1 6 5 2 1 6 . 9 2 4 5 2 5 13 10 5 18 Tactical Retreats 32 | . 1 1 . 1 . 5 . . 4 . 2 . . . . . . . 1 . 2 . 1 . 3 . 1 10 Traps | -11 -10 -10 -10 -9 -8 -8 -8 -7 -7 -7 -7 -6 -6 -6 -6 -6 -6 -5 -5 -4 -4 -3 -3 -3 -3 -2 -2 -1 ------- Run | Scr Mat Min Exi Min Mat Gar Mat Fac Gar Fac Gar Fac Ext Cet Arc Hub Gar Fac Gar Fac Gar Res Gar Res Qua Res Tes Acc Traps Triggered 55 | . 1 . . . . 11 . . 5 . 5 2 1 . . . 9 . 1 2 10 . 4 3 1 . . . Indirectly . | . . . . . . . . . . . . . . . . . . . . . . . . . . . . . Trap Hack Attempts . | . . . . . . . . . . . . . . . . . . . . . . . . . . . . . Triggered . | . . . . . . . . . . . . . . . . . . . . . . . . . . . . . Disarmed . | . . . . . . . . . . . . . . . . . . . . . . . . . . . . . Reprogrammed 6 | . . . . . . . . . . . . . . . . . . . . . . . . . 6 . . . Reused 1 | . . . . . . . . . . . . . . . . . . . . . . . . . 1 . . . Traps Extracted . | . . . . . . . . . . . . . . . . . . . . . . . . . . . . . Installed . | . . . . . . . . . . . . . . . . . . . . . . . . . . . . . Triggered 1 | . . . . . . . . . . . . . . . . . . . . . . . . . 1 . . . Machines | -11 -10 -10 -10 -9 -8 -8 -8 -7 -7 -7 -7 -6 -6 -6 -6 -6 -6 -5 -5 -4 -4 -3 -3 -3 -3 -2 -2 -1 ---------- Run | Scr Mat Min Exi Min Mat Gar Mat Fac Gar Fac Gar Fac Ext Cet Arc Hub Gar Fac Gar Fac Gar Res Gar Res Qua Res Tes Acc Machines Disabled 50 | . 1 . . . . 5 . . 3 . 3 . 4 3 2 . 3 . 2 2 5 . 4 . 13 . . . Max in Single Turn 1 | . 1 . . . . 1 . . 1 . 1 . 1 . 1 . 1 . 1 1 1 . 1 . 1 . . . Garrison Relay 18 | . . . . . . 3 . . 3 . 1 . . . . . 2 . 2 . 4 . 3 . . . . . Machines Sabotaged . | . . . . . . . . . . . . . . . . . . . . . . . . . . . . . Garrisons Compromised . | . . . . . . . . . . . . . . . . . . . . . . . . . . . . . Overloaded Fab Kills . | . . . . . . . . . . . . . . . . . . . . . . . . . . . . . Fab Network Shutdowns . | . . . . . . . . . . . . . . . . . . . . . . . . . . . . . Hacking | -11 -10 -10 -10 -9 -8 -8 -8 -7 -7 -7 -7 -6 -6 -6 -6 -6 -6 -5 -5 -4 -4 -3 -3 -3 -3 -2 -2 -1 --------- Run | Scr Mat Min Exi Min Mat Gar Mat Fac Gar Fac Gar Fac Ext Cet Arc Hub Gar Fac Gar Fac Gar Res Gar Res Qua Res Tes Acc Machines Accessed 63 | . 3 . . . 1 . 6 1 . 1 . 2 6 3 . 4 . 3 . 7 . 1 . 5 12 2 3 3 Terminals 43 | . 3 . . . . . 5 . . . . 1 6 3 . 3 . 1 . 2 . . . 4 10 2 2 1 Fabricators . | . . . . . . . . . . . . . . . . . . . . . . . . . . . . . Repair Stations 3 | . . . . . . . . . . . . 1 . . . . . . . 1 . . . . . . 1 . Recycling Units 3 | . . . . . . . . . . . . . . . . . . 1 . 1 . . . 1 . . . . Scanalyzers 5 | . . . . . . . 1 . . . . . . . . . . . . 2 . . . . 2 . . . Garrison Access 9 | . . . . . 1 . . 1 . 1 . . . . . 1 . 1 . 1 . 1 . . . . . 2 Total Hacks 162 | . 8 . . . 1 . 14 1 . 1 . 2 12 9 . 10 . 5 . 32 . 1 . 11 42 3 4 6 Successful 102 | . 7 . . . 1 . 7 1 . 1 . 2 8 4 . 6 . 4 . 27 . 1 . 6 23 . 3 1 Failed 60 | . 1 . . . . . 7 . . . . . 4 5 . 4 . 1 . 5 . . . 5 19 3 1 5 Catastrophic 11 | . . . . . . . 3 . . . . . 1 1 . . . . . . . . . 2 . 2 1 1 Database Lockouts . | . . . . . . . . . . . . . . . . . . . . . . . . . . . . . Manual 90 | . 8 . . . . . 12 . . . . 1 6 3 2 8 . 4 . 10 . . . 8 22 3 1 2 Terminals 115 | . 8 . . . . . 11 . . . . 1 12 9 . 9 . 2 . 8 . . . 8 39 3 3 2 Fabricators . | . . . . . . . . . . . . . . . . . . . . . . . . . . . . . Repair Stations 15 | . . . . . . . . . . . . 1 . . . . . . . 13 . . . . . . 1 . Recycling Units 7 | . . . . . . . . . . . . . . . . . . 2 . 2 . . . 3 . . . . Scanalyzers 14 | . . . . . . . 3 . . . . . . . . . . . . 8 . . . . 3 . . . Garrison Access 11 | . . . . . 1 . . 1 . 1 . . . . . 1 . 1 . 1 . 1 . . . . . 4 Terminal Hacks 35 | . 2 . . . . . 1 . . . . 1 4 4 . 1 . . . 2 . . . 2 14 . 3 1 Record 6 | . . . . . . . . . . . . . . 3 . . . . . . . . . . 3 . . . Prototype ID Bank 1 | . . . . . . . . . . . . . . . . . . . . . . . . . 1 . . . Open Door 9 | . . . . . . . . . . . . 1 4 1 . . . . . . . . . 1 1 . . 1 Level Access Points 2 | . . . . . . . . . . . . . . . . 1 . . . . . . . . 1 . . . Branch Access Points 6 | . 1 . . . . . 1 . . . . . . . . . . . . 1 . . . 1 1 . 1 . Terminal Index 3 | . 1 . . . . . . . . . . . . . . . . . . 1 . . . . 1 . . . Locate Traps 2 | . . . . . . . . . . . . . . . . . . . . . . . . . 2 . . . Reprogram Traps 1 | . . . . . . . . . . . . . . . . . . . . . . . . . 1 . . . Registered Components 1 | . . . . . . . . . . . . . . . . . . . . . . . . . 1 . . . Zone Layout 3 | . . . . . . . . . . . . . . . . . . . . . . . . . 2 . 1 . Protovariant Controls 1 | . . . . . . . . . . . . . . . . . . . . . . . . . . . 1 . Fabricator Hacks . | . . . . . . . . . . . . . . . . . . . . . . . . . . . . . Repair Station Hacks 12 | . . . . . . . . . . . . . . . . . . . . 12 . . . . . . . . Scan Component 6 | . . . . . . . . . . . . . . . . . . . . 6 . . . . . . . . Repair 6 | . . . . . . . . . . . . . . . . . . . . 6 . . . . . . . . Recycling Unit Hacks . | . . . . . . . . . . . . . . . . . . . . . . . . . . . . . Scanalyzer 11 | . . . . . . . 2 . . . . . . . . . . . . 7 . . . . 2 . . . Insert Component 5 | . . . . . . . 1 . . . . . . . . . . . . 3 . . . . 1 . . . Analyze 6 | . . . . . . . 1 . . . . . . . . . . . . 4 . . . . 1 . . . Garrison Access Hacks 7 | . . . . . 1 . . 1 . 1 . . . . . 1 . 1 . 1 . 1 . . . . . . Unlock Access 7 | . . . . . 1 . . 1 . 1 . . . . . 1 . 1 . 1 . 1 . . . . . . Unauthorized Hacks 37 | . 5 . . . . . 4 . . . . 1 4 . . 4 . 3 . 5 . . . 4 7 . . . Terminals 31 | . 5 . . . . . 4 . . . . . 4 . . 4 . 2 . 3 . . . 2 7 . . . Track 6 | . 1 . . . . . . . . . . . 1 . . . . 1 . 1 . . . . 2 . . . Botnet 20 | . 3 . . . . . 4 . . . . . 2 . . 3 . 1 . 2 . . . 2 3 . . . Operators 5 | . 1 . . . . . . . . . . . 1 . . 1 . . . . . . . . 2 . . . Fabricators . | . . . . . . . . . . . . . . . . . . . . . . . . . . . . . Repair Stations 1 | . . . . . . . . . . . . 1 . . . . . . . . . . . . . . . . Mechanics 1 | . . . . . . . . . . . . 1 . . . . . . . . . . . . . . . . Recycling Units 5 | . . . . . . . . . . . . . . . . . . 1 . 2 . . . 2 . . . . Reject 3 | . . . . . . . . . . . . . . . . . . 1 . 1 . . . 1 . . . . Recyclers 2 | . . . . . . . . . . . . . . . . . . . . 1 . . . 1 . . . . Scanalyzers . | . . . . . . . . . . . . . . . . . . . . . . . . . . . . . Garrison Access . | . . . . . . . . . . . . . . . . . . . . . . . . . . . . . Data Cores Recovered . | . . . . . . . . . . . . . . . . . . . . . . . . . . . . . Used . | . . . . . . . . . . . . . . . . . . . . . . . . . . . . . Hacking Detections 44 | . 3 . . . . . 5 . . 1 . . 3 3 . 4 . 2 . 5 . . . 4 7 2 2 3 Full Trace Events 3 | . . . . . . . . . . . . . . . . . . . . . . . . . . 1 . 2 Feedback Events . | . . . . . . . . . . . . . . . . . . . . . . . . . . . . . Feedback Blocked . | . . . . . . . . . . . . . . . . . . . . . . . . . . . . . Robot Schematics Acquired . | . . . . . . . . . . . . . . . . . . . . . . . . . . . . . Robots Built . | . . . . . . . . . . . . . . . . . . . . . . . . . . . . . Matter . | . . . . . . . . . . . . . . . . . . . . . . . . . . . . . Time . | . . . . . . . . . . . . . . . . . . . . . . . . . . . . . Total Robot Build Rating . | . . . . . . . . . . . . . . . . . . . . . . . . . . . . . Part Schematics Acquired 4 | . . . . . . . 1 . . . . . . . . . . . . 2 . . . . 1 . . . Parts Built . | . . . . . . . . . . . . . . . . . . . . . . . . . . . . . Matter . | . . . . . . . . . . . . . . . . . . . . . . . . . . . . . Time . | . . . . . . . . . . . . . . . . . . . . . . . . . . . . . Total Part Build Rating . | . . . . . . . . . . . . . . . . . . . . . . . . . . . . . Parts Repaired 6 | . . . . . . . . . . . . . . . . . . . . 6 . . . . . . . . Time 388 | . . . . . . . . . . . . . . . . . . . . 388 . . . . . . . . Parts Recycled . | . . . . . . . . . . . . . . . . . . . . . . . . . . . . . Recycled Matter . | . . . . . . . . . . . . . . . . . . . . . . . . . . . . . Retrieved Matter . | . . . . . . . . . . . . . . . . . . . . . . . . . . . . . Retrieved Components . | . . . . . . . . . . . . . . . . . . . . . . . . . . . . . Parts Scanalyzed 4 | . . . . . . . 1 . . . . . . . . . . . . 2 . . . . 1 . . . Part Schematics Acquired 4 | . . . . . . . 1 . . . . . . . . . . . . 2 . . . . 1 . . . Parts Damaged . | . . . . . . . . . . . . . . . . . . . . . . . . . . . . . Bothacking | -11 -10 -10 -10 -9 -8 -8 -8 -7 -7 -7 -7 -6 -6 -6 -6 -6 -6 -5 -5 -4 -4 -3 -3 -3 -3 -2 -2 -1 ------------ Run | Scr Mat Min Exi Min Mat Gar Mat Fac Gar Fac Gar Fac Ext Cet Arc Hub Gar Fac Gar Fac Gar Res Gar Res Qua Res Tes Acc Used RIF Installer 7 | . . . . . . 1 . . 1 . 1 . . . . . 1 . 1 . 1 . 1 . . . . . Coupler Efficiency 1 | . . . . . . . . . . . . . . . . . . . . . . . 1 . . . . . Command Fork 1 | . . . . . . . . . . . . . . . . . . . 1 . . . . . . . . . Zone Cloak 1 | . . . . . . . . . 1 . . . . . . . . . . . . . . . . . . . Robot Detection 1 | . . . . . . . . . . . . . . . . . 1 . . . . . . . . . . . Alert ID Control 1 | . . . . . . . . . . . 1 . . . . . . . . . . . . . . . . . Program Shield 1 | . . . . . . . . . . . . . . . . . . . . . 1 . . . . . . . Robots Hacked 105 | . . . . . . . . . 10 2 8 4 12 1 2 2 1 . 7 3 12 14 9 16 2 . . . Non-combat 24 | . . . . . . . . . . 1 . 3 4 . 1 1 . . . 2 . 4 . 8 . . . . Combat 81 | . . . . . . . . . 10 1 8 1 8 1 1 1 1 . 7 1 12 10 9 8 2 . . . Robot Hacks Applied 119 | . . . . . . . . . 11 3 8 4 15 1 2 2 2 . 7 3 13 18 9 19 2 . . . parse_system 5 | . . . . . . . . . . . . . . 1 . . . . . . 1 1 . 2 . . . . no_distress 2 | . . . . . . . . . . . . . 2 . . . . . . . . . . . . . . . start_evac 1 | . . . . . . . . . . . . . 1 . . . . . . . . . . . . . . . find_chute 1 | . . . . . . . . . . . . . . . . . . . . 1 . . . . . . . . drop_inventory 6 | . . . . . . . . . . . . 1 . . . . . . . . . 2 . 3 . . . . locate_stockpiles 1 | . . . . . . . . . . . . . . . . . . . . . . 1 . . . . . . find_recycling 1 | . . . . . . . . . . . . . 1 . . . . . . . . . . . . . . . map_route 7 | . . . . . . . . . . 1 . . . . . 1 . . . . . 2 . 3 . . . . mark_security 2 | . . . . . . . . . . . . . . . . . . . . . . 1 . 1 . . . . find_garrison 2 | . . . . . . . . . . . . . . . . . . . . . . 1 . 1 . . . . overload_power 1 | . . . . . . . . . . . . . 1 . . . . . . . . . . . . . . . disable_weapons 10 | . . . . . . . . . . . . . 2 . . . . . 3 . 3 2 . . . . . . go_dormant 3 | . . . . . . . . . . . . . . . . 1 1 . . . 1 . . . . . . . overwrite_iff 4 | . . . . . . . . . 1 . . . . . . . . . . . . . . 3 . . . . streamctrl_high 8 | . . . . . . . . . 3 1 . . 1 . . . . . . . 3 . . . . . . . formatsys_low 6 | . . . . . . . . . . . . 2 2 . 1 . . . . . . . . 1 . . . . formatsys_high 59 | . . . . . . . . . 7 1 8 1 5 . 1 . 1 . 4 2 5 8 9 5 2 . . . Relay Couplers Released 68 | . . . . . . 12 . . 11 . 5 . . . . . 8 . 7 . 15 . 10 . . . . . Machine Destruction 68 | . . . . . . 12 . . 11 . 5 . . . . . 8 . 7 . 15 . 10 . . . . . Attached 55 | . . . . . . . . . 6 2 6 2 5 1 . . 1 1 4 3 9 5 5 3 2 . . . Robots Rewired 9 | . . . . . . . . . . . . . 3 . . . . . 6 . . . . . . . . . Allies Hacked 3 | . . . . . . . . . . . . 1 . . . . . . . . 2 . . . . . . . Hacks Repelled 2 | . . . . . . . . . . . . . . . . . . . . . 2 . . . . . . . Allies | -11 -10 -10 -10 -9 -8 -8 -8 -7 -7 -7 -7 -6 -6 -6 -6 -6 -6 -5 -5 -4 -4 -3 -3 -3 -3 -2 -2 -1 -------- Run | Scr Mat Min Exi Min Mat Gar Mat Fac Gar Fac Gar Fac Ext Cet Arc Hub Gar Fac Gar Fac Gar Res Gar Res Qua Res Tes Acc Total Allies 109 | . . 2 . . . . . . 10 2 8 3 15 2 2 . 1 . 12 3 9 10 10 11 9 . . . Largest Group 13 | . . 2 2 . . . . . 3 2 5 4 13 13 9 7 7 4 9 2 2 8 7 7 7 . . . Highest-Rated Group 600 | . . 42 42 . . . . . 47 49 115 89 512 600 442 323 323 188 260 112 162 408 338 372 153 . . . Highest-Rated Ally 156 | . . 31 31 . . . . . 32 32 32 32 156 156 131 94 94 94 94 56 115 64 64 64 64 . . . Total Orders 45 | . . . . . . . . . . 3 2 8 6 4 . . . . 2 6 3 2 4 5 . . . . STAY 26 | . . . . . . . . . . 2 1 4 3 2 . . . . 1 4 1 1 4 3 . . . . FOLLOW 17 | . . . . . . . . . . 1 1 3 2 2 . . . . 1 2 2 1 . 2 . . . . AID 2 | . . . . . . . . . . . . 1 1 . . . . . . . . . . . . . . . Ally Attacks 849 | . . . . . . . . . 29 4 37 . 147 123 22 3 54 . 64 . 26 73 12 159 96 . . . Total Damage 21645 | . . . . . . . . . 440 98 823 . 2960 2977 608 149 1862 . 1631 . 1043 2464 306 4107 2177 . . . Kills 147 | . . . . . . . . . 3 1 13 . 18 26 2 2 12 . 15 . 5 13 4 22 11 . . . Allies Corrupted 10 | . . . . . . . . . 1 . . . . . . . . . . . 1 4 . 3 1 . . . Allies Melted 1 | . . . . . . . . . 1 . . . . . . . . . . . . . . . . . . . Intel | -11 -10 -10 -10 -9 -8 -8 -8 -7 -7 -7 -7 -6 -6 -6 -6 -6 -6 -5 -5 -4 -4 -3 -3 -3 -3 -2 -2 -1 ------- Run | Scr Mat Min Exi Min Mat Gar Mat Fac Gar Fac Gar Fac Ext Cet Arc Hub Gar Fac Gar Fac Gar Res Gar Res Qua Res Tes Acc Robot Analysis Total . | . . . . . . . . . . . . . . . . . . . . . . . . . . . . . Derelict Logs Recovered 3 | . . . . 3 . . . . . . . . . . . . . . . . . . . . . . . . Drone Launches . | . . . . . . . . . . . . . . . . . . . . . . . . . . . . . Drone Recoveries . | . . . . . . . . . . . . . . . . . . . . . . . . . . . . . Exploration | -11 -10 -10 -10 -9 -8 -8 -8 -7 -7 -7 -7 -6 -6 -6 -6 -6 -6 -5 -5 -4 -4 -3 -3 -3 -3 -2 -2 -1 ------------- Run | Scr Mat Min Exi Min Mat Gar Mat Fac Gar Fac Gar Fac Ext Cet Arc Hub Gar Fac Gar Fac Gar Res Gar Res Qua Res Tes Acc Turns Passed 27616 | 32 535 161 333 1284 161 1877 980 396 891 483 913 1489 1279 700 135 161 556 160 1197 2640 2452 796 1891 1739 3823 114 129 309 Spaces Moved 14863 | 8 323 117 297 735 78 739 428 241 505 248 580 1005 822 440 62 103 248 105 600 1231 1191 306 772 734 1545 211 305 884 Core 243 | . . . . . . . . . . . . . . . . . . . . . . . . . 30 153 . 60 Treads 4957 | . . . . 1 2 739 170 . . . . . . 46 48 . 3 . 36 89 496 306 772 734 1515 . . . Legs . | . . . . . . . . . . . . . . . . . . . . . . . . . . . . . Wheels 8476 | 8 323 117 297 734 76 . 258 241 505 248 580 1005 822 394 14 103 245 105 564 1142 695 . . . . . . . Hover . | . . . . . . . . . . . . . . . . . . . . . . . . . . . . . Flight 1187 | . . . . . . . . . . . . . . . . . . . . . . . . . . 58 305 824 Fastest Speed 20 | 90 100 110 110 120 190 200 140 120 110 120 120 120 120 120 140 140 140 140 130 140 140 160 175 185 50 34 34 20 Average Speed 139 | 98 109 110 110 147 190 210 174 120 119 120 120 120 120 131 170 140 140 140 142 142 156 182 194 197 164 46 34 31 Slowest Speed 260 | 100 110 110 120 220 200 260 260 120 120 120 120 120 120 180 180 140 180 140 180 180 180 185 200 210 185 50 34 50 Overloaded Moves . | . . . . . . . . . . . . . . . . . . . . . . . . . . . . . Propulsion Burnouts . | . . . . . . . . . . . . . . . . . . . . . . . . . . . . . Robots Hopped 12 | . . . . . . . . . . . 5 . . . . . . . . . . . . . . 1 . 6 Cave-ins Triggered . | . . . . . . . . . . . . . . . . . . . . . . . . . . . . . Exploration Rate (%) 41 | 2 49 21 69 97 9 76 33 5 58 7 74 11 69 86 78 14 51 3 61 21 78 6 58 20 63 5 38 31 Regions Visited 28 Branch Regions 9 Pre-discovered Areas 2 | . . . . 2 . . . . . . . . . . . . . . . . . . . . . . . . Known Exits Taken 17 | . 1 . . . 1 . 1 1 . 1 . 1 1 1 1 1 . 1 . 1 . 1 . 1 1 1 1 . Unknown Exits Taken 4 | 1 . 1 1 1 . . . . . . . . . . . . . . . . . . . . . . . . Scrap Searched 1 | . . . . 1 . . . . . . . . . . . . . . . . . . . . . . . . Spaces Dug 41 | . . . . . . . . . . 6 . 24 . . . . . 1 . 7 . . . . 3 . . . Terrain Destroyed 286 | . . 4 . 4 . 32 65 . . 6 20 25 3 2 . . 15 1 5 37 3 4 9 4 47 . . . Melee . | . . . . . . . . . . . . . . . . . . . . . . . . . . . . . Projectile 131 | . . . . . . . 14 . . 6 . 25 3 2 . . . 1 1 12 3 4 9 4 47 . . . AOE 155 | . . 4 . 4 . 32 51 . . . 20 . . . . . 15 . 4 25 . . . . . . . . Terrain Rammed . | . . . . . . . . . . . . . . . . . . . . . . . . . . . . . Walls Destroyed . | . . . . . . . . . . . . . . . . . . . . . . . . . . . . . Machines Disabled . | . . . . . . . . . . . . . . . . . . . . . . . . . . . . . Actions | -11 -10 -10 -10 -9 -8 -8 -8 -7 -7 -7 -7 -6 -6 -6 -6 -6 -6 -5 -5 -4 -4 -3 -3 -3 -3 -2 -2 -1 --------- Run | Scr Mat Min Exi Min Mat Gar Mat Fac Gar Fac Gar Fac Ext Cet Arc Hub Gar Fac Gar Fac Gar Res Gar Res Qua Res Tes Acc Total 19971 | 24 473 137 301 846 92 936 590 317 706 419 752 1233 1070 557 81 118 411 113 838 1979 1603 483 1099 930 2404 222 328 909 Wait 2606 | . 116 15 . 28 3 49 56 52 70 133 62 154 178 75 11 8 30 1 65 601 152 71 214 76 362 . 9 15 Move 14803 | 7 322 116 296 734 77 737 427 240 503 247 568 1004 821 439 61 102 246 104 598 1230 1189 305 770 733 1544 208 304 871 Hop 12 | . . . . . . . . . . . 5 . . . . . . . . . . . . . . 1 . 6 Pick Up 284 | . 16 . 1 13 2 27 16 4 12 7 8 9 3 15 . . 8 2 28 21 27 13 11 10 27 . 1 3 Fast Attach 125 | 2 1 . . 4 . 3 3 . 2 2 2 . 2 . . 1 1 . 1 7 5 4 8 5 51 10 8 3 Attach 162 | 3 . . . 6 6 6 2 2 6 2 5 5 3 3 . 1 6 2 17 6 11 5 6 5 49 . 1 4 Detach 54 | . . . . 2 2 . . . . . . . . . . . 2 . 3 2 1 . 4 1 34 . . 3 Swap 232 | . 1 . 2 . 1 11 21 3 20 3 8 4 13 5 2 2 3 . 16 24 35 14 9 20 15 . . . Drop 285 | 7 2 . 2 11 1 13 25 1 6 7 10 7 2 13 . 2 5 . 16 16 19 15 13 9 71 3 5 4 Fire 1149 | 5 15 6 . 48 . 70 40 15 55 18 44 50 39 7 7 2 36 4 72 72 110 56 56 71 251 . . . Melee . | . . . . . . . . . . . . . . . . . . . . . . . . . . . . . Ram . | . . . . . . . . . . . . . . . . . . . . . . . . . . . . . Kick . | . . . . . . . . . . . . . . . . . . . . . . . . . . . . . Crush 1 | . . . . . . . . . . . . . . . . . . . 1 . . . . . . . . . Escape Stasis 232 | . . . . . . 20 . . 32 . 40 . 8 . . . 72 . . . 52 . 8 . . . . . Rewire 26 | . . . . . . . . . . . . . 1 . . . 2 . 21 . 2 . . . . . . . Trap . | . . . . . . . . . . . . . . . . . . . . . . . . . . . . . Miscellaneous . | . . . . . . . . . . . . . . . . . . . . . . . . . . . . . Route ------- -11/Scrapyard -10/Materials -10/Mines -10/Exiles (discovered 2 exits: [*Min x2]) -9/Mines (discovered 2 exits: *Mat x2) -8/Materials (discovered 3 exits: Fac x2 / Gar) -8/Garrison (discovered 3 exits: *Mat x3) -8/Materials -7/Factory -7/Garrison (discovered 2 exits: *Fac x2) -7/Factory -7/Garrison (discovered 3 exits: *Fac x3) -6/Factory -6/Extension (discovered 3 exits: *Fac x2 / *Cet) -6/Cetus (discovered 2 exits: *Fac / *Arc) -6/Archives -6/Hub_04(d) (discovered 5 exits: Fac x4 / Gar) -6/Garrison -5/Factory -5/Garrison -4/Factory (discovered 5 exits: *Res / Upp x2 / Arm / Gar) -4/Garrison (discovered 3 exits: *Res x3) -3/Research (discovered 2 exits: Res / Gar) -3/Garrison (discovered 2 exits: *Res x2) -3/Research (discovered 2 exits: *Qua x2) -3/Quarantine -2/Research -2/Testing -1/Access Tau Ceti IV Orbit History --------- Turn | Location | Event 17 | -11/Scrapyard | Discovered new exit (range 2) 33 | -11/Scrapyard | Entered Materials 310 | -10/Materials | Build established: Mutant 486 | -10/Materials | Identified exit to Mines 568 | -10/Materials | Entered Mines 720 | -10/Mines | Deemed a non-threat by the Exiles lab entrance 720 | -10/Mines | Discovered new exit (range 5) 729 | -10/Mines | Entered Exiles 729 | -10/Exiles | Found Exiles lab abandoned 729 | -10/Exiles | Accompanied by 2 allies 744 | -10/Exiles | Discovered new exit (range 15) 759 | -10/Exiles | Led the pair of lost Derelicts to a safe place 1052 | -10/Exiles | Discovered new exit (range 11) 1062 | -10/Exiles | Entered Mines 1092 | -9/Mines | Learned Materials stockpile data 1136 | -9/Mines | Learned location of 2 exits from Materials 1243 | -9/Mines | Discovered new exit (range 16) 1258 | -9/Mines | Discovered new exit (range 13) 1323 | -9/Mines | A weapon hastily lodged in a ceiling crevice suddenly fell to the ground 1347 | -9/Mines | Build established: Hauler-Mutant 1414 | -9/Mines | YI-UF0 nonchalantly dropped a Grenade Launcher on the ground 1577 | -9/Mines | Found a damaged Exp. Sensor Array with a note attached 1582 | -9/Mines | Found Prototype Device 1700 | -9/Mines | Learned location of Storage (-9) 2266 | -9/Mines | Destroyed YI-UF0 2291 | -9/Mines | Found Prototype Launcher 2291 | -9/Mines | Identified YI-UF0's Doublenader 2296 | -9/Mines | Found Prototype Storage 2346 | -9/Mines | Entered Materials 2346 | -8/Materials | Evolved 4 slots: Utility x4 2347 | -8/Materials | Identified exit to Factory 2348 | -8/Materials | Identified Exp. Sensor Array 2349 | -8/Materials | Identified YI-UF0's Bottomless Matter Pit 2505 | -8/Materials | Identified exit to Garrison 2507 | -8/Materials | Entered Garrison 2556 | -8/Garrison | Triggered checkpoint 2596 | -8/Garrison | Garrison Relay disabled 2731 | -8/Garrison | Triggered checkpoint 2748 | -8/Garrison | Triggered checkpoint 2977 | -8/Garrison | Discovered new exit (range 8) 2989 | -8/Garrison | Identified exit to Materials 3236 | -8/Garrison | Discovered exit to Materials (range 12) 3410 | -8/Garrison | Triggered checkpoint 3711 | -8/Garrison | Discovered exit to Materials (range 15) 3749 | -8/Garrison | Installed Relay Interface Framework 3801 | -8/Garrison | Triggered checkpoint 3858 | -8/Garrison | Garrison Relay disabled 3979 | -8/Garrison | Triggered checkpoint 4035 | -8/Garrison | Lost 3 parts (1p1n1u) 4258 | -8/Garrison | Triggered checkpoint 4268 | -8/Garrison | Triggered checkpoint 4296 | -8/Garrison | Garrison Relay disabled 4384 | -8/Garrison | Entered Materials 4784 | -8/Materials | First assault squad dispatched 4926 | -8/Materials | Destroyed 9 combat bots 5217 | -8/Materials | Discovered exit to Factory (range 4) 5364 | -8/Materials | Entered Factory 5364 | -7/Factory | Evolved 2 slots: Propulsion x2 5396 | -7/Factory | Identified exit to Garrison 5760 | -7/Factory | Entered Garrison 5824 | -7/Garrison | Triggered checkpoint 5904 | -7/Garrison | Garrison Relay disabled 6070 | -7/Garrison | Build established: Bothacker-Mutant 6164 | -7/Garrison | Triggered checkpoint 6248 | -7/Garrison | Triggered checkpoint 6289 | -7/Garrison | Garrison Relay disabled 6364 | -7/Garrison | Discovered new exit (range 8) 6371 | -7/Garrison | Identified exit to Factory 6379 | -7/Garrison | Expanded RIF knowledge: Zone Cloak 6478 | -7/Garrison | Triggered checkpoint 6500 | -7/Garrison | Discovered exit to Factory (range 12) 6542 | -7/Garrison | Triggered checkpoint 6606 | -7/Garrison | Garrison Relay disabled 6651 | -7/Garrison | Entered Factory 6651 | -7/Factory | Accompanied by 1 ally 7130 | -7/Factory | Identified exit to Garrison 7134 | -7/Factory | Entered Garrison 7134 | -7/Garrison | Accompanied by 1 ally 7316 | -7/Garrison | Triggered checkpoint 7453 | -7/Garrison | Discovered new exit (range 14) 7478 | -7/Garrison | Identified exit to Factory 7547 | -7/Garrison | Garrison Relay disabled 7636 | -7/Garrison | Triggered checkpoint 7659 | -7/Garrison | Triggered checkpoint 7908 | -7/Garrison | Discovered exit to Factory (range 10) 8013 | -7/Garrison | Discovered exit to Factory (range 10) 8040 | -7/Garrison | Expanded RIF knowledge: Alert ID Control 8047 | -7/Garrison | Entered Factory 8047 | -6/Factory | Accompanied by 1 ally 8047 | -6/Factory | Evolved 2 slots: Utility x2 9507 | -6/Factory | Discovered new exit (range 6) 9511 | -6/Factory | Identified exit to Extension 9536 | -6/Factory | Entered Extension 9536 | -6/Extension | Accompanied by 3 allies 9557 | -6/Extension | Disrupted transfer network 9609 | -6/Extension | Rescued a captive Derelict 9610 | -6/Extension | Rescued a captive Derelict 9879 | -6/Extension | Rescued A7 10374 | -6/Extension | Rescued a captive Derelict 10375 | -6/Extension | Spotted B-75 Beast 10382 | -6/Extension | Spotted B-75 Beast 10402 | -6/Extension | Allies destroyed B-75 Beast 10405 | -6/Extension | Allies destroyed B-75 Beast 10461 | -6/Extension | Discovered new exit (range 3) 10461 | -6/Extension | Identified exit to Factory 10760 | -6/Extension | Discovered new exit (range 16) 10761 | -6/Extension | Discovered exit to Factory (range 15) 10777 | -6/Extension | Identified exit to Cetus 10815 | -6/Extension | Entered Cetus 10815 | -6/Cetus | Accompanied by 13 allies (A7) 10820 | -6/Cetus | Acquired a Cetus Manufacturing Module code from A7 10833 | -6/Cetus | Spotted Cetus Guard 10833 | -6/Cetus | Spotted Cetus Guard 10840 | -6/Cetus | Spotted Cetus Guard 10844 | -6/Cetus | Spotted Cetus Guard 10850 | -6/Cetus | Allies destroyed Cetus Guard 10853 | -6/Cetus | Allies destroyed Cetus Guard 10862 | -6/Cetus | Allies destroyed Cetus Guard 10862 | -6/Cetus | Allies destroyed Cetus Guard 10960 | -6/Cetus | Started Cetus Manufacturing Module 10985 | -6/Cetus | Manufactured an Enhanced Grunt 11010 | -6/Cetus | Manufactured an Enhanced Grunt 11026 | -6/Cetus | Cetus Manufacturing Module disabled 11087 | -6/Cetus | Escorted A7 to Cetus Mainframe 11159 | -6/Cetus | Discovered new exit (range 15) 11176 | -6/Cetus | Identified exit to Archives 11206 | -6/Cetus | Spotted Cetus Guard 11206 | -6/Cetus | Spotted Cetus Guard 11209 | -6/Cetus | Allies destroyed Cetus Guard 11209 | -6/Cetus | Spotted Cetus Guard 11210 | -6/Cetus | Spotted Cetus Guard 11214 | -6/Cetus | Allies destroyed Cetus Guard 11222 | -6/Cetus | Allies destroyed Cetus Guard 11225 | -6/Cetus | Allies destroyed Cetus Guard 11232 | -6/Cetus | Discovered exit to Factory (range 16) 11241 | -6/Cetus | Met Revision 17 11515 | -6/Cetus | Entered Archives 11515 | -6/Archives | Accompanied by 8 allies (A7) 11520 | -6/Archives | Received a hacking code to weaken MAIN.C 11572 | -6/Archives | Unable to access archive contents 11593 | -6/Archives | Unable to access archive contents 11611 | -6/Archives | Discovered new exit (range 14) 11642 | -6/Archives | Identified exit to Hub_04(d) 11650 | -6/Archives | Entered Hub_04(d) 11650 | -6/Hub_04(d) | Accompanied by 7 allies 11804 | -6/Hub_04(d) | Identified exit to Garrison 11811 | -6/Hub_04(d) | Entered Garrison 11811 | -6/Garrison | Accompanied by 7 allies 11818 | -6/Garrison | Expanded RIF knowledge: Robot Detection 11884 | -6/Garrison | Triggered checkpoint 11933 | -6/Garrison | Garrison Relay disabled 11994 | -6/Garrison | Triggered checkpoint 12025 | -6/Garrison | Triggered checkpoint 12109 | -6/Garrison | Discovered exit to Factory (range 9) 12212 | -6/Garrison | Triggered checkpoint 12296 | -6/Garrison | Triggered checkpoint 12302 | -6/Garrison | Garrison Relay disabled 12367 | -6/Garrison | Entered Factory 12367 | -5/Factory | Accompanied by 4 allies 12367 | -5/Factory | Evolved 2 slots: Utility x2 12515 | -5/Factory | Identified exit to Garrison 12527 | -5/Factory | Entered Garrison 12527 | -5/Garrison | Accompanied by 4 allies 12534 | -5/Garrison | Expanded RIF knowledge: Command Fork 12589 | -5/Garrison | Build established: Botlord-Mutant 12670 | -5/Garrison | Triggered checkpoint 12707 | -5/Garrison | Garrison Relay disabled 12758 | -5/Garrison | Spotted B-75 Beast 12764 | -5/Garrison | Triggered checkpoint 12784 | -5/Garrison | Triggered checkpoint 12785 | -5/Garrison | Allies destroyed B-75 Beast 12830 | -5/Garrison | Triggered checkpoint 12862 | -5/Garrison | Lost 3 parts (3w) 12920 | -5/Garrison | Found Prototype Device 12922 | -5/Garrison | Identified Exp. Thermal Shield 13324 | -5/Garrison | Build established: Hauler-Mutant 13388 | -5/Garrison | Garrison Relay disabled 13627 | -5/Garrison | Lost 5 parts (1u4w) 13661 | -5/Garrison | Discovered new exit (range 11) 13680 | -5/Garrison | Identified exit to Factory 13724 | -5/Garrison | Entered Factory 13724 | -4/Factory | Accompanied by 2 allies 13724 | -4/Factory | Evolved 2 slots: Utility x2 13946 | -4/Factory | Build established: Scavenger-Mutant 14316 | -4/Factory | Discovered new exit (range 10) 14327 | -4/Factory | Identified exit to Research 14459 | -4/Factory | Build established: Hacker-Mutant 14824 | -4/Factory | Build established: Botlord-Mutant 15030 | -4/Factory | Repaired Arm. Huge Wheel 15088 | -4/Factory | Repaired Imp. Coolant Injector 15197 | -4/Factory | Repaired Centrium Heavy Treads 15272 | -4/Factory | Repaired Quantum Reactor 15318 | -4/Factory | Repaired Imp. Medium Armor Plating 15381 | -4/Factory | Repaired Adv. Particle Charger 15756 | -4/Factory | Identified exit to Upper Caves 15756 | -4/Factory | Identified exit to Armory 16363 | -4/Factory | Identified exit to Garrison 16364 | -4/Factory | Entered Garrison 16402 | -4/Garrison | Triggered checkpoint 16453 | -4/Garrison | P-70 Sage assimilated allied Sentinel 7a 16513 | -4/Garrison | Garrison Relay disabled 16599 | -4/Garrison | Spotted B-86 Titan 16640 | -4/Garrison | Hijacked Titan 7a control node with streamctrl_high 16666 | -4/Garrison | Triggered checkpoint 16713 | -4/Garrison | Triggered checkpoint 16812 | -4/Garrison | Destroyed Titan 7a 16915 | -4/Garrison | Discovered exit to Research (range 10) 17009 | -4/Garrison | Triggered checkpoint 17213 | -4/Garrison | Discovered exit to Research (range 12) 17403 | -4/Garrison | Discovered exit to Research (range 10) 17422 | -4/Garrison | Expanded RIF knowledge: Program Shield 17708 | -4/Garrison | Triggered checkpoint 17730 | -4/Garrison | Garrison Relay disabled 17910 | -4/Garrison | Triggered checkpoint 17930 | -4/Garrison | Garrison Relay disabled 18072 | -4/Garrison | Triggered checkpoint 18132 | -4/Garrison | Garrison Relay disabled 18598 | -4/Garrison | Triggered checkpoint 18816 | -4/Garrison | Entered Research 18816 | -3/Research | Accompanied by 2 allies 18816 | -3/Research | Evolved 2 slots: Utility x2 18850 | -3/Research | Discovered new exit (range 90) 19054 | -3/Research | Garrison activated, responded to threat 19610 | -3/Research | Identified exit to Garrison 19612 | -3/Research | Entered Garrison 19722 | -3/Garrison | Triggered checkpoint 19841 | -3/Garrison | Garrison Relay disabled 20055 | -3/Garrison | Triggered checkpoint 20269 | -3/Garrison | Discovered new exit (range 12) 20287 | -3/Garrison | Identified exit to Research 20299 | -3/Garrison | Expanded RIF knowledge: Coupler Efficiency 20353 | -3/Garrison | Triggered checkpoint 20391 | -3/Garrison | Garrison Relay disabled 20603 | -3/Garrison | Triggered checkpoint 20877 | -3/Garrison | Discovered exit to Research (range 12) 20961 | -3/Garrison | Triggered checkpoint 21007 | -3/Garrison | Garrison Relay disabled 21503 | -3/Garrison | Entered Research 21503 | -3/Research | Accompanied by 7 allies 21900 | -3/Research | System corruption reached 10% 22384 | -3/Research | Spotted B-86 Titan 23192 | -3/Research | Identified exit to Quarantine 23242 | -3/Research | Entered Quarantine 23242 | -3/Quarantine | Accompanied by 2 allies 23439 | -3/Quarantine | Found Alien Artifact 23439 | -3/Quarantine | Identified Subatomic Replicator 23642 | -3/Quarantine | Found Alien Artifact 23642 | -3/Quarantine | Identified Core Reset Matrix 23642 | -3/Quarantine | Used Core Reset Matrix 23646 | -3/Quarantine | Detected hypermatrix surge 23646 | -3/Quarantine | Sensed 7 artifacts in vicinity 23667 | -3/Quarantine | Met incapacitated Sigix Warrior 23667 | -3/Quarantine | Lockdown squad dispatched 23674 | -3/Quarantine | Acquired the access code to the Sigix quarantine chamber 23677 | -3/Quarantine | Unlocked Sigix quarantine chamber 23716 | -3/Quarantine | Spotted Lightning 23728 | -3/Quarantine | Spotted Lightning 23780 | -3/Quarantine | Destroyed Lightning 23800 | -3/Quarantine | Spotted Lightning 23801 | -3/Quarantine | Destroyed Lightning 23848 | -3/Quarantine | Destroyed Lightning 23858 | -3/Quarantine | Lost 3 parts (1u2w) 23900 | -3/Quarantine | Found Prototype Device 23900 | -3/Quarantine | Identified EM Dispersion Field 23905 | -3/Quarantine | Found Prototype Processor 23905 | -3/Quarantine | Identified Exp. Targeting Computer 23941 | -3/Quarantine | Found Exp. Targeting Computer 23947 | -3/Quarantine | Found Prototype Device 23947 | -3/Quarantine | Identified Exp. Phase Shifter 23951 | -3/Quarantine | Found Exp. Phase Shifter 23955 | -3/Quarantine | Found Prototype Energy Cannon 23955 | -3/Quarantine | Identified EMDS 23959 | -3/Quarantine | Found Exp. Targeting Computer 24141 | -3/Quarantine | Build established: Scavenger-Mutant 24354 | -3/Quarantine | Found Sigix Corpse 24401 | -3/Quarantine | Found Matter Drive 24430 | -3/Quarantine | Identified exit to Research 25911 | -3/Quarantine | Scanned by Researcher 26069 | -3/Quarantine | Found Core Cannon 26290 | -3/Quarantine | First assault squad dispatched 26774 | -3/Quarantine | Found Phase Armor 26808 | -3/Quarantine | System corruption reached 30% 26839 | -3/Quarantine | Core integrity fell below 50% 26853 | -3/Quarantine | Emitted hypermatrix ping 26858 | -3/Quarantine | Assembled emerged from beneath the floor 26891 | -3/Quarantine | Lost 11 parts (2n8u1w) 26960 | -3/Quarantine | Found Stasis Generator 27056 | -3/Quarantine | Core integrity fell below 20% 27065 | -3/Quarantine | Entered Research 27065 | -2/Research | Evolved 2 slots: Power x1, Utility x1 27086 | -2/Research | Lost 6 parts (1p2n3u) 27154 | -2/Research | Discovered new exit (range 9) 27179 | -2/Research | Identified exit to Testing 27179 | -2/Research | Entered Testing 27190 | -2/Testing | Spotted PP-08OD2FJJRG 27199 | -2/Testing | Protovariant out of control (PD-0635LD1DRB) 27260 | -2/Testing | Protovariant out of control (PP-08OD2FJJRG) 27260 | -2/Testing | Unleashed a protovariant (PP-08OD2FJJRG) 27293 | -2/Testing | Discovered new exit (range 8) 27295 | -2/Testing | Identified exit to Access 27308 | -2/Testing | Entered Access 27308 | -1/Access | Evolved 2 slots: Propulsion x2 27558 | -1/Access | First assault squad dispatched 27577 | -1/Access | Spotted B-99 Colossus 27586 | -1/Access | Spotted B-99 Colossus 27587 | -1/Access | Spotted B-99 Colossus 27615 | -1/Access | Discovered new exit (range 6) 27617 | -1/Access | Identified exit to Surface 27617 | *** | Destroyed 0B10! Last Messages --------------- 27584_ Imp. Coolant Injector destroyed. 27587_ Slug penetrates Wall. 27587_ Slug penetrates Longscan Aggregator. 27587_ Penetrated by Slug. 27587_ Slug penetrates Wall. 27587_ Knocked back. 27587_ Slug penetrates Wall. 27587_ Penetrated by Slug. 27587_ Exp. Q-thruster destroyed. 27587_ Adv. Targeting Computer destroyed. 27613_ Connecting with Terminal... >>Open Sealed Barrier opened. 27615_ The Access Shell folds into the floor. 27615_ EXIT=FOUND 27617_ EXIT=IDENTIFIED: SURFACE [Achievement: 30k Club] [Achievement: 40k Club] [Achievement: 50k Club] [Achievement: Payload Armed] Map ----- +----------------------------------------------------+ | ?????????????????????????????????????????????????? | | ?????????????????????????????????????????????????? | | ?????????????????????????????????????????????????? | | ??????????###????????????????????????????????????? | | ?????????? ##############??????????????????????? | | ?????????? # #??????????????????????? | | ??????????# # ! #?########?????????????? | | ??????????# # " #??] #?????????????? | | ??????????# # """" #?? #?????????????? | | ??????????# # """"" #???] ??????????????? | | ??????????# # """"" #??? ??????????????? | | ??????????# # """" #???? ] ???????????????? | | ??????????# # " #???? ???????????????? | | ??????????# # ######+#############???? | | ??????????# + + #???? | | ??????????# # ################## #???? | | ??????????# # #????????????????# #???? | | ??????????# ##############????????????????# #???? | | ??????????# #?????###?????????????????????# #???? | | ??????????# ####### ##########???#####????# ####? | | ??????????# """T""" "??" ???# +? | | ??????????# """ """ "??" ??# #? | | ??????????# "??" ### # | | ??????????# "??" # | | ??????????# "" "??" " | | ??????????# @" "??" + | | ??????????# "??" " | | ??????????# "??" #### # | | ??????????# "??" ???# # | | ??????????# "??? ????# # | | ??????????# ####### ##########???######????# # | | ??????????# ??????###??????????????????????# # | | ??????????# ???????????????????????????????# # | | ??????????# ???????????????????????????????# #? | | ??????????# ???????????????????????????????# #? | | ??????????+ ?????????????????????########### ## | | ??????????# ?????????????????????# | | ??????????? ?????????????????????# | | ??????????????????????????????????# | | ??????????????????????????????????# """" | | ????????????????????????????# ##### """" | | ????????????????????????????# """" | | ????????????????????????????# """" | | ????????????????????????????# """" | | ????????????????????????????# !!! """" | | ????????????????????????????# !!! | | ???????????????????????????## !!! | | ?????????????????????????? | | ?????????????????????????? " | | ?????????????????????????? * """ | +----------------------------------------------------+ Best States ------------- Heat Dissipation 91 Coolant Potential 80 Energy Generation 29 Energy Capacity 850 Matter Stores 1770 Matter Capacity 1800 Sight Range 16 Robot Scan Range 30 Terrain Scan Density 10 Jamming Range 16 Power Amplification 20 Armor Coverage 1200 Resistance: KI 30 Resistance: EM 75 Utility Shielding 66 Weapon Shielding 66 Phase Shifting 20 Evasion (%) 74 Targeting Accuracy 36 Recoil Reduction 4 Energy Filtering 50 Offensive Hacking 26 Defensive Hacking 12 Relay Coupler Types 119 Relay Coupler Value 5 Item Schematics ----------------- Hcp. Storage Unit | -3/Quarantine | Scanalyzed Robot Schematics ------------------ None Fabricated ------------ Nothing Alien Tech Used ----------------- Subatomic Replicator Core Reset Matrix Matter Drive Phase Armor Core Cannon Stasis Generator Achievements -------------- 30k Club 40k Club 50k Club Alien Roots Beloved Collateral Damage Error 47 False Reunion Infiltrator Main Advantage Payload Armed Project G-00 Pwned Rampage Revising The Future Challenges ------------ None Game ------ Seed PointySubatomicNanovents Manual? 0 Play Time 11:33:09 Cumulative 180.4 hours Start 2021.09.26 @ 16:36:14 End 2021.10.10 @ 18:22:06 Sessions 13 Manual Loads 0 Difficulty Rogue Special Mode None Game No. 60 Rogue 57 Adventurer 0 Explorer 3 Win Type 3 Total 3 Types 2/0/0/1/0/0/0/0/0 Lore% 45 Gallery% 64 Achievement% 47 Wizard Run 0 Options --------- ASCII 0 Keyboard 0 Movement Numpad Keybinds 0 Fullscreen 1 Font 18/SmallcapsGlow Map View 76x50 Tactical HUD 1 Map Filters NONE Filters NONE Steam 1 RUN: f8322538-16c8-4133-953a-96755b802eff